bitfinex/quotes_BTCUSD_20240803
["timestamp","ask_amount","ask_price","bid_price","bid_amount"]
[1722668534655,0.15959033,61876.0,61875.0,0.149212]
[1722668536310,0.2467392,61876.0,61875.0,0.149212]
[1722668536921,0.15959033,61876.0,61875.0,0.149212]
[1722668537841,0.24673922,61876.0,61875.0,0.149212]
[1722668538667,0.1596011,61876.0,61875.0,0.149212]
[1722668539486,0.1596011,61876.0,61875.0,0.028]
[1722668539861,0.24673756,61876.0,61875.0,0.149212]
[1722668541141,0.1596011,61876.0,61875.0,0.149212]
[1722668541336,0.24683721,61876.0,61875.0,0.149212]
[1722668541872,0.40429645,61876.0,61875.0,0.028]
[1722668542042,0.40429646,61876.0,61875.0,0.028]
[1722668542547,0.51584491,61876.0,61875.0,0.028]
[1722668542771,1.42050864,61876.0,61875.0,0.028]
[1722668542977,1.41521661,61876.0,61875.0,0.028]
[1722668543167,1.56067474,61876.0,61875.0,0.028]
[1722668543377,1.56067474,61876.0,61875.0,0.014]
[1722668543584,1.56067474,61876.0,61875.0,0.015]
[1722668544776,0.858512,61873.0,61872.0,0.000913]
[1722668544949,1.32841906,61873.0,61872.0,0.000913]
[1722668546381,1.33241906,61873.0,61872.0,0.001913]
[1722668546534,1.35541906,61873.0,61872.0,0.001913]
[1722668546958,1.35541906,61873.0,61872.0,0.002913]
[1722668547941,1.45671906,61873.0,61872.0,0.002913]
[1722668548172,1.45138078,61873.0,61872.0,0.002913]
[1722668549551,1.96421278,61873.0,61872.0,0.002913]
[1722668550076,1.96421278,61873.0,61872.0,0.001913]
[1722668550478,2.12757637,61873.0,61872.0,0.002913]
[1722668551040,1.62864437,61873.0,61872.0,0.002913]
[1722668551220,0.97641678,61873.0,61872.0,0.001913]
[1722668551456,0.32535907,61873.0,61872.0,0.001913]
[1722668551683,0.32535907,61873.0,61872.0,0.002913]
[1722668551684,0.36857111,61873.0,61872.0,0.002913]
[1722668552093,0.46533375,61873.0,61872.0,0.002913]
[1722668552301,0.70776575,61873.0,61872.0,0.001913]
[1722668552509,0.20583961,61873.0,61872.0,0.001913]
[1722668552761,0.32705561,61873.0,61872.0,0.001913]
[1722668552950,0.32705621,61873.0,61872.0,0.001913]
[1722668553118,0.32705621,61873.0,61872.0,0.002913]
[1722668553533,0.32705621,61873.0,61872.0,0.001913]
[1722668553902,0.32705621,61873.0,61872.0,0.002913]
[1722668554152,0.04838097,61874.0,61872.0,0.204513]
[1722668554319,0.15745924,61874.0,61873.0,0.121216]
[1722668554592,0.15745924,61874.0,61873.0,0.363648]
[1722668554806,0.04838097,61879.0,61872.0,0.204513]
[1722668555044,0.15903363,61878.0,61874.0,0.242427]
[1722668555199,0.15903363,61878.0,61877.0,0.363624]
[1722668555411,0.15726473,61878.0,61877.0,0.363624]
[1722668556033,0.00911,61881.0,61878.0,0.307012]
[1722668556195,0.00911,61881.0,61880.0,0.419706]
[1722668556391,0.00911,61881.0,61880.0,0.66211]
[1722668557303,0.00911,61881.0,61880.0,0.60601]
[1722668558522,0.00911,61881.0,61880.0,0.61301]
[1722668559193,0.00911,61881.0,61880.0,0.920014]
[1722668559397,0.00911,61881.0,61880.0,1.000914]
[1722668562212,0.00911,61881.0,61880.0,0.75851]
[1722668566577,0.00911,61881.0,61880.0,1.000914]
[1722668567814,0.00911,61881.0,61880.0,0.993914]
[1722668568258,0.00907,61881.0,61880.0,1.000914]
[1722668568474,0.00907,61881.0,61880.0,0.993914]
[1722668569000,0.00907,61881.0,61880.0,1.007914]
[1722668569253,0.00907,61881.0,61880.0,1.011914]
[1722668569670,0.00907,61881.0,61880.0,0.993914]
[1722668569876,0.00907,61881.0,61880.0,0.998914]
[1722668571015,0.00907,61881.0,61880.0,0.993914]
[1722668571215,0.00907,61881.0,61880.0,1.007914]
[1722668571417,0.00907,61881.0,61880.0,0.999914]
[1722668571816,0.00907,61881.0,61880.0,1.013914]
[1722668575125,0.00907,61881.0,61880.0,0.993914]
[1722668575320,0.00907,61881.0,61880.0,1.000914]
[1722668575547,0.00907,61881.0,61880.0,1.014914]
[1722668576236,0.00907,61881.0,61880.0,1.007914]
[1722668577102,0.00907,61881.0,61880.0,0.993914]
[1722668577507,0.00907,61881.0,61880.0,1.015914]
[1722668579296,0.00907,61881.0,61880.0,1.071914]
[1722668579932,0.00907,61881.0,61880.0,1.314318]
[1722668580545,0.0001,61888.0,61887.0,0.904319]
[1722668580751,0.00157439,61907.0,61889.0,0.1439]
[1722668580962,0.00157439,61908.0,61896.0,0.483911]
[1722668581363,0.0661,61909.0,61896.0,0.968593]
[1722668582101,0.0661,61909.0,61896.0,0.982593]
[1722668582311,0.0661,61909.0,61896.0,0.988593]
[1722668582513,0.00157439,61908.0,61896.0,0.988593]
[1722668582887,0.0661,61909.0,61896.0,0.988593]
[1722668583461,0.0661,61909.0,61896.0,0.974593]
[1722668583663,0.00157439,61908.0,61896.0,0.988593]
[1722668584271,0.0661,61909.0,61896.0,0.982593]
[1722668584700,0.0661,61909.0,61896.0,0.988593]
[1722668585733,0.00157439,61908.0,61896.0,0.988593]
[1722668585983,0.0661,61909.0,61896.0,0.988593]
[1722668586920,0.00157439,61908.0,61896.0,0.988593]
[1722668587546,0.0661,61909.0,61896.0,0.988593]
[1722668590669,0.0661,61909.0,61896.0,1.310434]
[1722668592505,0.0661,61909.0,61896.0,1.32012757]
[1722668599896,0.082295,61910.0,61896.0,1.32012757]
[1722668599897,0.082295,61910.0,61896.0,1.66246857]
[1722668600098,0.082295,61910.0,61896.0,1.42012757]
[1722668600342,0.082295,61910.0,61896.0,1.05738657]
[1722668600343,0.1454,61902.0,61896.0,1.05738657]
[1722668600492,0.1454,61902.0,61896.0,1.03388657]
[1722668600696,0.0826,61902.0,61896.0,1.03388657]
[1722668600919,0.0628,61904.0,61896.0,1.03388657]
[1722668601477,0.09171,61905.0,61896.0,1.03388657]
[1722668601871,0.09171,61905.0,61896.0,1.27622757]
[1722668603045,0.00902922,61897.0,61896.0,1.27622757]
[1722668604370,0.00902922,61897.0,61896.0,1.42242757]
[1722668604702,0.00902922,61897.0,61896.0,1.58988681]
[1722668604919,0.00911,61905.0,61902.0,1.544949]
[1722668605112,0.0140182,61912.0,61909.0,0.2022]
[1722668605326,0.0140182,61912.0,61911.0,0.84799]
[1722668605459,0.0140182,61912.0,61911.0,1.190273]
[1722668606084,0.0140182,61912.0,61911.0,0.94799]
[1722668607076,0.0140182,61912.0,61911.0,0.96199]
[1722668607492,0.0140182,61912.0,61911.0,0.719707]
[1722668607723,0.0140182,61912.0,61911.0,0.386424]
[1722668607724,0.1594182,61912.0,61911.0,0.386424]
[1722668607924,0.31687744,61912.0,61911.0,0.009]
[1722668608216,0.3294598,61912.0,61911.0,0.130141]
[1722668608389,0.3294598,61912.0,61902.0,0.242316]
[1722668608609,0.31701599,61911.0,61907.0,0.121149]
[1722668608762,0.01258236,61910.0,61906.0,0.12115]
[1722668608939,0.15745924,61909.0,61907.0,0.121148]
[1722668609144,0.01258236,61908.0,61903.0,0.298313]
[1722668609391,0.15745924,61907.0,61906.0,0.121151]
[1722668609702,0.1700416,61907.0,61906.0,0.121151]
[1722668610030,0.17004281,61907.0,61906.0,0.130151]
[1722668610214,0.17004281,61907.0,61906.0,0.121151]
[1722668610412,0.17004288,61907.0,61906.0,0.363453]
[1722668610565,0.17004288,61907.0,61906.0,0.375453]
[1722668611168,0.17004288,61907.0,61906.0,0.376453]
[1722668613449,0.01258364,61907.0,61906.0,0.618755]
[1722668613586,0.1454,61911.0,61909.0,0.242291]
[1722668613786,0.1454,61911.0,61910.0,0.36343]
[1722668613989,0.15798294,61911.0,61910.0,0.36343]
[1722668614937,0.31544218,61911.0,61910.0,0.36343]
[1722668615781,0.31544218,61911.0,61910.0,0.37043]
[1722668617072,0.30285924,61911.0,61910.0,0.37043]
[1722668617349,0.3191035,61911.0,61910.0,0.37043]
[1722668618332,0.3191035,61911.0,61910.0,0.612717]
[1722668618333,0.01624426,61911.0,61910.0,0.612717]
[1722668619190,0.01624426,61911.0,61910.0,0.605717]
[1722668619607,0.01624426,61911.0,61910.0,0.615717]
[1722668620654,0.0140182,61912.0,61911.0,0.605707]
[1722668620783,0.04081797,61912.0,61911.0,0.605707]
[1722668620983,0.0140182,61912.0,61911.0,0.605707]
[1722668621602,0.0140182,61912.0,61911.0,1.234373]
[1722668622215,0.0140182,61912.0,61911.0,1.243373]
[1722668623073,0.0140182,61912.0,61911.0,1.234373]
[1722668623606,0.0140182,61912.0,61911.0,1.247373]
[1722668624315,0.0140182,61912.0,61911.0,1.2567875]
[1722668625088,0.0140182,61912.0,61911.0,1.2597875]
[1722668626035,0.0140182,61912.0,61911.0,1.0175045]
[1722668627158,0.04200168,61912.0,61911.0,1.0175045]
[1722668627387,0.0140182,61912.0,61911.0,1.0175045]
[1722668627856,0.04223861,61912.0,61911.0,1.0175045]
[1722668628278,0.0140182,61912.0,61911.0,0.9398045]
[1722668628520,0.03944518,61912.0,61911.0,0.9398045]
[1722668629365,0.03944518,61912.0,61911.0,0.6311215]
[1722668629563,0.03944518,61912.0,61911.0,0.1465555]
[1722668629737,0.03944518,61912.0,61911.0,0.3888385]
[1722668629977,0.03944518,61912.0,61911.0,0.1465555]
[1722668630181,0.03944518,61912.0,61911.0,0.3888385]
[1722668630640,0.03944518,61912.0,61911.0,0.379424]
[1722668631073,0.03944518,61912.0,61911.0,0.621707]
[1722668632091,0.03850489,61912.0,61911.0,0.621707]
[1722668633155,0.03850489,61912.0,61911.0,0.379424]
[1722668634120,0.03850489,61912.0,61911.0,0.621707]
[1722668634325,0.03850489,61912.0,61911.0,0.379424]
[1722668634503,0.03850489,61912.0,61911.0,0.621707]
[1722668634959,0.03850489,61912.0,61911.0,0.379424]
[1722668635164,0.03850489,61912.0,61911.0,0.621707]
[1722668635578,0.03945748,61912.0,61911.0,0.379424]
[1722668636586,0.03945748,61912.0,61911.0,0.621707]
[1722668637246,0.03945748,61912.0,61911.0,0.677707]
[1722668638515,0.04028748,61912.0,61911.0,0.677707]
[1722668639140,0.0148482,61912.0,61911.0,0.677707]
[1722668639347,0.04376647,61912.0,61911.0,0.677707]
[1722668640090,0.04376647,61912.0,61911.0,0.743807]
[1722668640294,0.04376647,61912.0,61911.0,0.98609]
[1722668641945,0.04444823,61912.0,61911.0,0.98609]
[1722668643821,0.04444823,61912.0,61911.0,0.677707]
[1722668644921,0.0148482,61912.0,61911.0,0.677707]
[1722668645134,0.04440443,61912.0,61911.0,0.677707]
[1722668648452,0.04440443,61912.0,61911.0,0.91999]
[1722668648453,0.04842837,61912.0,61911.0,0.91999]
[1722668648657,0.04842837,61912.0,61911.0,0.677707]
[1722668648856,0.04842837,61912.0,61911.0,0.91999]
[1722668649131,0.04842837,61912.0,61911.0,0.99729]
[1722668649536,0.04842837,61912.0,61911.0,0.677707]
[1722668650661,0.04823396,61912.0,61911.0,0.91999]
[1722668652474,0.04735725,61912.0,61911.0,0.98609]
[1722668653869,0.04735725,61912.0,61911.0,0.98809]
[1722668654310,0.04735725,61912.0,61911.0,1.06639]
[1722668655515,0.04743502,61912.0,61911.0,1.06639]
[1722668657180,0.04637064,61912.0,61911.0,0.679707]
[1722668657400,0.12947064,61912.0,61911.0,0.679707]
[1722668657607,0.04637064,61912.0,61911.0,0.677707]
[1722668657969,0.04637064,61912.0,61911.0,0.91999]
[1722668659600,0.04637064,61912.0,61911.0,1.06189]
[1722668663078,0.04720655,61912.0,61911.0,1.06189]
[1722668665335,0.04720655,61912.0,61911.0,1.17126208]
[1722668665336,0.01465379,61912.0,61911.0,1.17126208]
[1722668665535,0.01465379,61912.0,61911.0,1.16189]
[1722668665536,0.06074519,61912.0,61911.0,1.16189]
[1722668668506,0.01465379,61912.0,61911.0,1.27154283]
[1722668669420,0.05663094,61912.0,61911.0,1.16189]
[1722668669621,0.05655164,61912.0,61911.0,1.16189]
[1722668672361,0.05655164,61912.0,61911.0,1.162803]
[1722668673388,0.01465379,61912.0,61911.0,1.162803]
[1722668673620,0.05531379,61912.0,61911.0,1.162803]
[1722668675020,0.05531379,61912.0,61911.0,1.106803]
[1722668675223,0.01465379,61912.0,61911.0,1.2720862]
[1722668675802,0.01465379,61912.0,61911.0,1.162803]
[1722668676013,0.01465379,61912.0,61911.0,1.27208619]
[1722668676429,0.01465379,61912.0,61911.0,1.162803]
[1722668676863,0.05724121,61912.0,61911.0,1.162803]
[1722668677307,0.05724369,61912.0,61911.0,1.162803]
[1722668678153,0.01465379,61912.0,61911.0,1.27222479]
[1722668679458,0.01465379,61912.0,61911.0,1.51450779]
[1722668679661,0.01465379,61912.0,61911.0,1.27222479]
[1722668683991,0.01465379,61912.0,61911.0,1.51450779]
[1722668684568,0.01465379,61912.0,61911.0,1.27222479]
[1722668685348,0.01465379,61912.0,61911.0,1.162803]
[1722668685516,0.01465379,61912.0,61911.0,1.27216185]
[1722668685717,0.01465379,61912.0,61911.0,1.51444485]
[1722668685933,0.01465379,61912.0,61911.0,1.51450067]
[1722668688534,0.01465379,61912.0,61911.0,1.50150067]
[1722668688704,0.01465379,61912.0,61911.0,1.51550067]
[1722668689080,0.01465379,61912.0,61911.0,1.51250067]
[1722668689226,0.01465379,61912.0,61911.0,1.52344766]
[1722668691711,0.01465379,61912.0,61911.0,1.50944766]
[1722668691913,0.01465379,61912.0,61911.0,1.49844766]
[1722668692147,0.01465379,61912.0,61911.0,1.403086]
[1722668692323,0.01465379,61912.0,61911.0,1.52509459]
[1722668692733,0.01465379,61912.0,61911.0,1.51109459]
[1722668692986,0.01465379,61912.0,61911.0,1.38875321]
[1722668693157,0.01465379,61912.0,61911.0,1.51276432]
[1722668693422,0.01465379,61912.0,61911.0,1.52576432]
[1722668696998,0.01465379,61912.0,61911.0,1.08558132]
[1722668697228,0.01465379,61912.0,61911.0,1.14158132]
[1722668698103,0.01465379,61912.0,61911.0,1.08558132]
[1722668698335,0.01465379,61912.0,61911.0,1.03157021]
[1722668699249,0.05001537,61912.0,61911.0,1.03157021]
[1722668700104,0.01465379,61912.0,61911.0,1.03157021]
[1722668700314,0.04640563,61912.0,61911.0,1.03157021]
[1722668700927,0.04625152,61912.0,61911.0,1.03157021]
[1722668701132,0.01465379,61912.0,61911.0,1.14667842]
[1722668701337,0.01465379,61912.0,61911.0,1.03157021]
[1722668702280,0.01465379,61912.0,61911.0,1.14660277]
[1722668702845,0.01465379,61912.0,61911.0,1.14657829]
[1722668706270,0.01465379,61912.0,61911.0,0.90421397]
[1722668706271,0.15255379,61912.0,61911.0,0.90421397]
[1722668706510,0.15255379,61912.0,61911.0,0.78942721]
[1722668706709,0.18505959,61912.0,61911.0,0.78942721]
[1722668707871,0.18423863,61912.0,61911.0,0.78942721]
[1722668708618,0.12383863,61912.0,61911.0,0.78942721]
[1722668710874,0.01465379,61912.0,61911.0,1.03171021]
[1722668713614,0.01465379,61912.0,61911.0,0.54714421]
[1722668713804,0.15255379,61912.0,61911.0,0.391477]
[1722668714124,0.12598092,61912.0,61911.0,0.876043]
[1722668714477,0.04848092,61912.0,61911.0,0.876043]
[1722668715165,0.04848092,61912.0,61911.0,0.862043]
[1722668715366,0.04848092,61912.0,61911.0,0.876043]
[1722668715606,0.04848092,61912.0,61911.0,0.863043]
[1722668715762,0.04848092,61912.0,61911.0,0.857043]
[1722668716486,0.04848092,61912.0,61911.0,0.849043]
[1722668716685,0.01465379,61912.0,61911.0,0.863043]
[1722668716927,0.04916294,61912.0,61911.0,0.863043]
[1722668717163,0.04950626,61912.0,61911.0,0.863043]
[1722668717363,0.01465379,61912.0,61911.0,0.869043]
[1722668719680,0.05697049,61912.0,61911.0,0.869043]
[1722668719914,0.01465379,61912.0,61911.0,0.869043]
[1722668721212,0.05653655,61912.0,61911.0,0.869043]
[1722668721687,0.01465379,61912.0,61911.0,0.869043]
[1722668722370,0.05829541,61912.0,61911.0,0.869043]
[1722668723080,0.05829541,61912.0,61911.0,0.948543]
[1722668723306,0.05829541,61912.0,61911.0,1.011343]
[1722668724493,0.05790704,61912.0,61911.0,1.011343]
[1722668725878,0.05790704,61912.0,61911.0,0.869043]
[1722668728000,0.05908956,61912.0,61911.0,1.011343]
[1722668729825,0.05908956,61912.0,61911.0,1.36660079]
[1722668729826,0.01465379,61912.0,61911.0,1.36660079]
[1722668730030,0.01465379,61912.0,61911.0,1.46660079]
[1722668731395,0.01465379,61912.0,61911.0,1.46667393]
[1722668731909,0.01465379,61912.0,61911.0,1.46667089]
[1722668733877,0.01465379,61912.0,61911.0,1.32437089]
[1722668735504,0.01465379,61912.0,61911.0,1.46337089]
[1722668738719,0.01465379,61912.0,61911.0,1.46255529]
[1722668742051,0.01465379,61912.0,61911.0,1.46260923]
[1722668742422,0.01465379,61912.0,61911.0,1.46254436]
[1722668743443,0.01465379,61912.0,61911.0,1.32354436]
[1722668744253,0.09595379,61912.0,61911.0,1.08126136]
[1722668744466,0.09595379,61912.0,61911.0,1.13726136]
[1722668746055,0.01465379,61912.0,61911.0,1.13726136]
[1722668748658,0.01465379,61912.0,61911.0,1.27626136]
[1722668748869,0.01465379,61912.0,61911.0,1.51854436]
[1722668749275,0.01465379,61912.0,61911.0,1.51254436]
[1722668750150,0.01465379,61912.0,61911.0,1.49854436]
[1722668750627,0.01465379,61912.0,61911.0,1.50254436]
[1722668750971,0.01465379,61912.0,61911.0,1.51254436]
[1722668751346,0.01465379,61912.0,61911.0,1.51754436]
[1722668751760,0.01465379,61912.0,61911.0,1.51254436]
[1722668752094,0.01465379,61912.0,61911.0,1.51854436]
[1722668752502,0.01465379,61912.0,61911.0,1.50468916]
[1722668752907,0.01465379,61912.0,61911.0,1.5186867]
[1722668753109,0.01465379,61912.0,61911.0,1.5046867]
[1722668753552,0.01465379,61912.0,61911.0,1.5186867]
[1722668754401,0.01465379,61912.0,61911.0,1.5126867]
[1722668754743,0.01465379,61912.0,61911.0,1.5246867]
[1722668755730,0.01465379,61912.0,61911.0,1.4475867]
[1722668755930,0.01465379,61912.0,61911.0,1.3856867]
[1722668756132,0.01465379,61912.0,61911.0,1.3296867]
[1722668756508,0.01465379,61912.0,61911.0,1.3856867]
[1722668757254,0.09255379,61912.0,61911.0,1.1434037]
[1722668757607,0.14089047,61912.0,61911.0,1.1434037]
[1722668758152,0.06299047,61912.0,61911.0,1.1434037]
[1722668759675,0.01465379,61912.0,61911.0,1.1434037]
[1722668761084,0.01465379,61912.0,61911.0,1.0874037]
[1722668761319,0.01465379,61912.0,61911.0,1.1434037]
[1722668761878,0.01465379,61912.0,61911.0,1.031043]
[1722668762082,0.01465379,61912.0,61911.0,1.14354844]
[1722668762458,0.01465379,61912.0,61911.0,1.14361977]
[1722668763297,0.01465379,61912.0,61911.0,1.14358679]
[1722668763499,0.01465379,61912.0,61911.0,1.08758679]
[1722668763635,0.01465379,61912.0,61911.0,1.14358679]
[1722668766042,0.01465379,61912.0,61911.0,1.031043]
[1722668766240,0.01465379,61912.0,61911.0,1.14312758]
[1722668769301,0.06522615,61912.0,61911.0,1.14312758]
[1722668769526,0.01465379,61912.0,61911.0,1.08712758]
[1722668769706,0.06329255,61912.0,61911.0,1.14312758]
[1722668769860,0.01465379,61912.0,61911.0,1.031043]
[1722668770061,0.01465379,61912.0,61911.0,1.14312543]
[1722668770363,0.01465379,61912.0,61911.0,1.175443]
[1722668770563,0.01465379,61912.0,61911.0,1.28799014]
[1722668771347,0.01465379,61912.0,61911.0,1.53027314]
[1722668774759,0.01465379,61912.0,61911.0,1.53015704]
[1722668775259,0.01465379,61912.0,61911.0,1.53015473]
[1722668782314,0.01465379,61912.0,61911.0,1.53021962]
[1722668782952,0.01458879,61912.0,61911.0,1.53021962]
[1722668783155,0.01458879,61912.0,61911.0,1.417726]
[1722668783354,0.01458879,61912.0,61911.0,1.52994838]
[1722668783917,0.0058422,61915.0,61911.0,1.52994838]
[1722668783918,0.0058422,61915.0,61914.0,1.090219]
[1722668784154,0.0058422,61915.0,61914.0,1.50198138]
[1722668784325,0.0058422,61915.0,61914.0,1.74425238]
[1722668786091,0.0058422,61915.0,61914.0,1.76625238]
[1722668787226,0.0058422,61915.0,61914.0,1.65403]
[1722668787435,0.0058422,61915.0,61914.0,1.76560126]
[1722668787639,0.0058422,61915.0,61914.0,1.65403]
[1722668787835,0.0058422,61915.0,61914.0,1.76560065]
[1722668791465,0.0058422,61915.0,61914.0,1.76542071]
[1722668791679,0.0058422,61915.0,61914.0,1.70942071]
[1722668791877,0.0058422,61915.0,61914.0,1.76542071]
[1722668795504,0.0058422,61915.0,61914.0,1.765332]
[1722668803043,0.0058422,61915.0,61914.0,1.76544283]
[1722668806666,0.0058422,61915.0,61914.0,1.76532833]
[1722668809345,0.0008422,61915.0,61914.0,1.76532833]
[1722668809498,0.0008422,61915.0,61914.0,1.70932833]
[1722668809714,0.0008422,61915.0,61914.0,1.76532833]
[1722668810531,0.0008422,61915.0,61914.0,1.76555445]
[1722668810983,0.0008422,61915.0,61914.0,1.76555414]
[1722668814126,0.0008422,61915.0,61914.0,1.65403]
[1722668814345,0.0008422,61915.0,61914.0,1.76567062]
[1722668817748,0.0008422,61915.0,61914.0,1.76560582]
[1722668820932,0.0008422,61915.0,61914.0,1.76574424]
[1722668821335,0.0008422,61915.0,61914.0,1.65403]
[1722668821552,0.0008422,61915.0,61914.0,1.76578836]
[1722668823882,0.0008422,61915.0,61914.0,1.65403]
[1722668824091,0.0008422,61915.0,61914.0,1.76568946]
[1722668824264,0.0008422,61915.0,61914.0,1.62228946]
[1722668825413,0.0772422,61921.0,61920.0,1.090116]
[1722668825615,0.13873058,61921.0,61920.0,1.146256]
[1722668826859,0.13873058,61921.0,61920.0,1.148256]
[1722668827259,0.13873058,61921.0,61920.0,1.160256]
[1722668827489,0.0772422,61921.0,61920.0,1.160256]
[1722668827663,0.13844653,61921.0,61920.0,1.160256]
[1722668831474,0.13939623,61921.0,61920.0,1.160256]
[1722668831686,0.06215403,61921.0,61920.0,1.260256]
[1722668831890,0.0785,61923.0,61922.0,1.09008]
[1722668832094,0.0785,61923.0,61922.0,1.30172011]
[1722668832513,0.0785,61923.0,61922.0,1.19022]
[1722668833094,0.0785,61923.0,61922.0,1.30198231]
[1722668833457,0.0785,61923.0,61922.0,1.19022]
[1722668833660,0.0785,61923.0,61922.0,1.30202473]
[1722668833892,0.0785,61923.0,61922.0,1.19522]
[1722668834537,0.0785,61923.0,61922.0,1.20922]
[1722668835506,0.0785,61923.0,61922.0,1.32090889]
[1722668836450,0.0785,61923.0,61922.0,1.20922]
[1722668836647,0.0785,61923.0,61922.0,1.32095172]
[1722668837058,0.0785,61923.0,61922.0,1.32095251]
[1722668837284,0.0703,61926.0,61925.0,0.847798]
[1722668837449,0.13194449,61926.0,61925.0,0.903938]
[1722668837851,0.20794449,61926.0,61925.0,0.903938]
[1722668838610,0.20794449,61926.0,61925.0,0.915938]
[1722668839036,0.20700253,61926.0,61925.0,0.915938]
[1722668839787,0.20700253,61926.0,61925.0,0.916938]
[1722668843056,0.20700253,61926.0,61925.0,0.860938]
[1722668844139,0.1463,61926.0,61925.0,0.860938]
[1722668844324,0.20562862,61926.0,61925.0,0.860938]
[1722668844738,0.1463,61926.0,61925.0,0.860938]
[1722668845266,0.30375924,61926.0,61925.0,0.01314]
[1722668845409,0.40072087,61926.0,61925.0,0.376482]
[1722668845588,0.46011779,61926.0,61925.0,0.376482]
[1722668845800,0.4601215,61926.0,61925.0,0.61871]
[1722668845999,0.36315616,61926.0,61925.0,0.61871]
[1722668846196,0.43588052,61926.0,61925.0,0.376482]
[1722668846391,0.41163725,61926.0,61925.0,0.376482]
[1722668846615,0.36315616,61926.0,61925.0,0.61871]
[1722668847657,0.36315616,61926.0,61925.0,0.860938]
[1722668847877,0.36315616,61926.0,61925.0,0.61871]
[1722668848019,0.36315616,61926.0,61925.0,0.860938]
[1722668849455,0.36315616,61926.0,61925.0,0.61871]
[1722668850399,0.36315616,61926.0,61925.0,0.860938]
[1722668851018,0.36315616,61926.0,61925.0,0.61871]
[1722668852421,0.36315616,61926.0,61925.0,0.860938]
[1722668852626,0.36315616,61926.0,61925.0,0.61871]
[1722668853217,0.36315616,61926.0,61925.0,0.860938]
[1722668854347,0.36315616,61926.0,61925.0,0.916938]
[1722668856567,0.30195616,61926.0,61925.0,0.916938]
[1722668856770,0.35674169,61926.0,61925.0,0.916938]
[1722668857192,0.35613,61926.0,61925.0,0.916938]
[1722668857364,0.12267076,61926.0,61925.0,0.916938]
[1722668858421,0.06327384,61926.0,61925.0,0.916938]
[1722668860566,0.06307947,61926.0,61925.0,0.916938]
[1722668861138,0.06394363,61926.0,61925.0,0.916938]
[1722668861539,0.06402277,61926.0,61925.0,0.916938]
[1722668863310,0.06402277,61926.0,61925.0,0.860938]
[1722668869428,0.11251516,61926.0,61925.0,0.860938]
[1722668869579,0.06402277,61926.0,61925.0,0.860938]
[1722668871785,0.06423647,61926.0,61925.0,0.860938]
[1722668871981,0.00890563,61926.0,61925.0,0.860938]
[1722668872190,0.12015059,61926.0,61925.0,0.61871]
[1722668872588,0.12015059,61926.0,61925.0,0.860938]
[1722668872896,0.16864252,61926.0,61925.0,0.860938]
[1722668873200,0.12015059,61926.0,61925.0,0.860938]
[1722668873366,0.16864252,61926.0,61925.0,0.860938]
[1722668874468,0.16864252,61926.0,61925.0,0.61871]
[1722668875037,0.16864252,61926.0,61925.0,0.860938]
[1722668875533,0.12015059,61926.0,61925.0,0.860938]
[1722668876525,0.12015059,61926.0,61925.0,0.61871]
[1722668876983,0.12015059,61926.0,61925.0,0.860938]
[1722668878370,0.06452811,61926.0,61925.0,0.860938]
[1722668879343,0.06452811,61926.0,61925.0,0.916938]
[1722668880327,0.06452811,61926.0,61925.0,1.158438]
[1722668880559,0.00890563,61926.0,61925.0,1.51278351]
[1722668880763,0.00890563,61926.0,61925.0,1.56103358]
[1722668881105,0.00890563,61926.0,61925.0,1.51278351]
[1722668881304,0.00890563,61926.0,61925.0,1.51274892]
[1722668881453,0.00890563,61926.0,61925.0,1.50074892]
[1722668881835,0.00890563,61926.0,61925.0,1.50174892]
[1722668882257,0.00890563,61926.0,61925.0,1.50074892]
[1722668882461,0.00890563,61926.0,61925.0,1.50174892]
[1722668883136,0.00890563,61926.0,61925.0,1.49974892]
[1722668883547,0.00890563,61926.0,61925.0,1.387666]
[1722668883969,0.00890563,61926.0,61925.0,1.331666]
[1722668884258,0.00890563,61926.0,61925.0,1.415666]
[1722668884517,0.00890563,61926.0,61925.0,1.031938]
[1722668894376,0.00890563,61926.0,61925.0,1.274166]
[1722668894733,0.00890563,61926.0,61925.0,1.107438]
[1722668895351,0.00890563,61926.0,61925.0,1.349666]
[1722668895563,0.00890563,61926.0,61925.0,1.107438]
[1722668896196,0.00890563,61926.0,61925.0,1.171938]
[1722668897489,0.00890563,61926.0,61925.0,1.172851]
[1722668897709,0.00890563,61926.0,61925.0,1.415079]
[1722668897922,0.00890563,61926.0,61925.0,1.172851]
[1722668898363,0.00890563,61926.0,61925.0,1.415079]
[1722668898819,0.00890563,61926.0,61925.0,1.359079]
[1722668899015,0.00890563,61926.0,61925.0,1.415079]
[1722668903223,0.00890563,61926.0,61925.0,1.52752829]
[1722668904219,0.00890563,61926.0,61925.0,1.415079]
[1722668904424,0.00890563,61926.0,61925.0,1.52709406]
[1722668904682,0.00890563,61926.0,61925.0,1.52713076]
[1722668906872,0.00890563,61926.0,61925.0,1.22890276]
[1722668907082,0.00890563,61926.0,61925.0,1.28490276]
[1722668907475,0.00890563,61926.0,61925.0,1.52713076]
[1722668908489,0.00890563,61926.0,61925.0,1.415079]
[1722668909871,0.00890563,61926.0,61925.0,1.5281706]
[1722668912655,0.00890563,61926.0,61925.0,1.52804617]
[1722668916245,0.00890563,61926.0,61925.0,1.52819597]
[1722668916614,0.00890563,61926.0,61925.0,1.415079]
[1722668916814,0.00890563,61926.0,61925.0,1.52819611]
[1722668922923,0.0091,61933.0,61932.0,1.089904]
[1722668923126,0.0091,61933.0,61932.0,1.325444]
[1722668924422,0.0091,61933.0,61932.0,1.347444]
[1722668927334,0.0091,61933.0,61932.0,1.268044]
[1722668928162,0.00906,61933.0,61932.0,1.268044]
[1722668929543,0.00906,61933.0,61932.0,1.38195177]
[1722668929688,0.00906,61933.0,61932.0,1.268044]
[1722668931113,0.00906,61933.0,61932.0,1.212044]
[1722668931310,0.00906,61933.0,61932.0,1.268044]
[1722668932831,0.00906,61933.0,61932.0,1.38228287]
[1722668933799,0.00906,61933.0,61932.0,1.39178228]
[1722668934163,0.00906,61933.0,61932.0,1.33567892]
[1722668934366,0.00906,61933.0,61932.0,1.27754341]
[1722668940301,0.00906,61933.0,61932.0,1.35684341]
[1722668940497,0.00906,61933.0,61932.0,1.27754341]
[1722668940929,0.05385334,61933.0,61932.0,1.27754341]
[1722668941128,0.00906,61933.0,61932.0,1.27754341]
[1722668942336,0.05384967,61933.0,61932.0,1.27754341]
[1722668942547,0.00906,61933.0,61932.0,1.39194817]
[1722668942757,0.00906,61933.0,61932.0,1.27754341]